bitfinex/quotes_BTCUSD_20241211
["timestamp","ask_amount","ask_price","bid_price","bid_amount"]
[1733915041531,4.8e-05,98353.0,98352.0,0.53250752]
[1733915041773,4.8e-05,98353.0,98352.0,0.55550752]
[1733915042014,4.8e-05,98353.0,98352.0,0.56250752]
[1733915042258,4.8e-05,98353.0,98352.0,0.55550752]
[1733915042735,4.8e-05,98353.0,98352.0,0.54550752]
[1733915042973,4.8e-05,98353.0,98352.0,0.55450752]
[1733915043459,4.8e-05,98353.0,98352.0,0.54550752]
[1733915043675,4.8e-05,98353.0,98352.0,0.55450752]
[1733915043960,4.8e-05,98353.0,98352.0,0.53750752]
[1733915044209,4.8e-05,98353.0,98352.0,0.54650752]
[1733915044455,4.8e-05,98353.0,98352.0,0.55550752]
[1733915044705,4.8e-05,98353.0,98352.0,0.53750752]
[1733915044941,4.8e-05,98353.0,98352.0,0.63685553]
[1733915045175,4.8e-05,98353.0,98352.0,0.54650752]
[1733915045412,4.8e-05,98353.0,98352.0,0.63685553]
[1733915046400,4.8e-05,98353.0,98352.0,0.55550752]
[1733915046965,4.8e-05,98353.0,98352.0,0.45340752]
[1733915047226,4.8e-05,98353.0,98352.0,0.58485987]
[1733915047467,4.8e-05,98353.0,98352.0,0.81932916]
[1733915047717,0.0822,98377.0,98359.0,0.31451355]
[1733915047967,0.0822,98377.0,98359.0,0.41983879]
[1733915048240,0.0822,98377.0,98359.0,0.42470935]
[1733915049238,0.0822,98377.0,98359.0,0.31938411]
[1733915049569,0.0822,98377.0,98359.0,0.42470935]
[1733915051100,0.0822,98377.0,98359.0,0.44270935]
[1733915051300,0.0822,98377.0,98359.0,0.29953795]
[1733915051534,0.0822,98377.0,98359.0,0.43370935]
[1733915051770,0.0822,98377.0,98359.0,0.44270935]
[1733915052010,0.0822,98377.0,98359.0,0.43370935]
[1733915052293,0.0822,98377.0,98368.0,0.2931714]
[1733915053027,0.0822,98377.0,98368.0,0.29802898]
[1733915054299,0.0822,98377.0,98368.0,0.32737113]
[1733915054542,0.0822,98377.0,98368.0,0.18419973]
[1733915054783,0.0822,98377.0,98368.0,0.32737113]
[1733915055056,0.0822,98377.0,98368.0,0.19119973]
[1733915055311,0.0822,98377.0,98368.0,0.36310911]
[1733915055580,0.0822,98377.0,98368.0,0.21993771]
[1733915055818,0.0822,98377.0,98368.0,0.36310911]
[1733915056337,0.0822,98377.0,98368.0,0.21310911]
[1733915056593,0.0822,98377.0,98368.0,0.36310911]
[1733915057586,0.0822,98377.0,98368.0,0.19859556]
[1733915057868,0.0822,98377.0,98368.0,0.34176696]
[1733915058132,0.0822,98377.0,98368.0,0.19176696]
[1733915059346,0.0822,98377.0,98368.0,0.18376696]
[1733915059598,0.00427471,98369.0,98368.0,0.18376696]
[1733915060087,0.00427471,98369.0,98368.0,0.17676696]
[1733915060629,0.00427471,98369.0,98368.0,0.18376696]
[1733915060894,0.00427471,98369.0,98368.0,0.17676696]
[1733915061124,0.0004,98369.0,98368.0,0.17676696]
[1733915061356,0.0004,98369.0,98368.0,0.19176696]
[1733915061594,0.0004,98369.0,98368.0,0.18376696]
[1733915061840,0.00427608,98369.0,98368.0,0.18376696]
[1733915062073,0.00427608,98369.0,98368.0,0.19176696]
[1733915063042,0.00427608,98369.0,98368.0,0.18376696]
[1733915063305,0.00427608,98369.0,98368.0,0.18976696]
[1733915063548,0.00427608,98369.0,98368.0,0.18276696]
[1733915063818,0.00427608,98369.0,98368.0,0.18876696]
[1733915064312,0.00427608,98369.0,98368.0,0.18276696]
[1733915064564,0.00427608,98369.0,98368.0,0.17676696]
[1733915064838,0.00427608,98369.0,98368.0,0.19076696]
[1733915065084,0.00427608,98369.0,98368.0,0.18476696]
[1733915065338,0.00427608,98369.0,98368.0,0.17676696]
[1733915065579,0.00427608,98369.0,98368.0,0.18276696]
[1733915066045,0.00427608,98369.0,98368.0,0.18976696]
[1733915066294,0.08757608,98369.0,98368.0,0.18276696]
[1733915066530,0.08757608,98369.0,98368.0,0.02885758]
[1733915066763,0.08757608,98369.0,98368.0,0.02285758]
[1733915067017,0.10140074,98369.0,98368.0,0.02285758]
[1733915067280,0.10140074,98369.0,98368.0,0.02885758]
[1733915067517,0.0975257,98369.0,98368.0,0.02885758]
[1733915067770,0.08990698,98369.0,98368.0,0.02885758]
[1733915068027,0.10761202,98369.0,98368.0,0.03585758]
[1733915068283,0.10140504,98369.0,98368.0,0.02985758]
[1733915068523,0.01810504,98369.0,98368.0,0.03485758]
[1733915068786,0.00427936,98369.0,98368.0,0.03485758]
[1733915069015,0.00427936,98369.0,98368.0,0.02785758]
[1733915069520,0.0004,98369.0,98368.0,0.34538763]
[1733915069784,0.0004,98369.0,98368.0,0.34437113]
[1733915070079,0.0004,98369.0,98368.0,0.33937113]
[1733915070269,0.0004,98369.0,98368.0,0.34337113]
[1733915070738,0.0004,98369.0,98368.0,0.33737113]
[1733915071252,0.0004,98369.0,98368.0,0.43106781]
[1733915072471,0.0004,98369.0,98368.0,0.43206781]
[1733915072712,0.0004,98369.0,98368.0,0.43115966]
[1733915072966,0.0004,98369.0,98368.0,0.43215967]
[1733915073225,0.0004,98369.0,98368.0,0.34137113]
[1733915073777,0.0004,98369.0,98368.0,0.32002898]
[1733915074241,0.0004,98369.0,98368.0,0.47755394]
[1733915074718,0.0004,98369.0,98368.0,0.47455394]
[1733915075188,0.0004,98369.0,98368.0,0.80986274]
[1733915075414,0.0004,98369.0,98368.0,0.88696274]
[1733915075645,0.0004,98369.0,98368.0,0.80986274]
[1733915075893,0.0004,98369.0,98368.0,0.80886274]
[1733915076143,0.00014835,98369.0,98368.0,0.67567993]
[1733915076412,0.00014835,98369.0,98368.0,0.86625702]
[1733915076641,0.00014835,98369.0,98368.0,0.85425702]
[1733915076901,0.00402883,98369.0,98368.0,0.86025702]
[1733915077121,0.00402883,98369.0,98368.0,0.86825702]
[1733915077345,0.00790925,98369.0,98368.0,0.85425702]
[1733915077568,0.00790925,98369.0,98368.0,0.86125702]
[1733915077790,0.00790925,98369.0,98368.0,0.87025702]
[1733915078255,0.00402877,98369.0,98368.0,0.68867993]
[1733915078704,0.00402877,98369.0,98368.0,0.81997993]
[1733915078940,0.00014835,98369.0,98368.0,0.91830517]
[1733915079168,0.00014835,98369.0,98368.0,1.14542474]
[1733915079409,0.00014835,98369.0,98368.0,0.91630517]
[1733915079846,0.00014835,98369.0,98368.0,0.91730517]
[1733915080128,0.00014835,98369.0,98368.0,0.90930517]
[1733915080356,0.00014835,98369.0,98368.0,0.92530517]
[1733915080814,0.00014835,98369.0,98368.0,0.91830517]
[1733915081040,0.00014835,98369.0,98368.0,0.92530517]
[1733915081291,0.00014835,98369.0,98368.0,0.91630517]
[1733915081540,0.00014835,98369.0,98368.0,0.81097993]
[1733915081762,0.00014835,98369.0,98368.0,0.76281007]
[1733915082545,0.00014835,98369.0,98368.0,0.76481007]
[1733915082718,0.00014835,98369.0,98368.0,0.77181007]
[1733915082945,0.00014835,98369.0,98368.0,0.76281007]
[1733915083162,0.00014835,98369.0,98368.0,0.76481007]
[1733915083380,0.00014835,98369.0,98368.0,0.75581007]
[1733915083603,0.00014835,98369.0,98368.0,0.76281007]
[1733915083828,0.00014835,98369.0,98368.0,0.99902722]
[1733915084053,0.00014835,98369.0,98368.0,0.99202722]
[1733915084302,0.00014835,98369.0,98368.0,0.76481007]
[1733915084519,0.00014835,98369.0,98368.0,0.75581007]
[1733915084735,0.00014835,98369.0,98368.0,0.76281007]
[1733915085652,0.075,98383.0,98368.0,0.76281007]
[1733915085653,6.774e-05,98380.0,98379.0,0.1431714]
[1733915085870,0.00394704,98380.0,98379.0,0.1431714]
[1733915086100,0.01015392,98380.0,98379.0,0.1431714]
[1733915086353,0.01015392,98380.0,98379.0,0.14797738]
[1733915087266,0.01015392,98380.0,98379.0,0.15397738]
[1733915087489,0.01015392,98380.0,98379.0,0.15897738]
[1733915088621,0.01015392,98380.0,98379.0,0.15397738]
[1733915089068,0.01015392,98380.0,98379.0,0.15897738]
[1733915089507,0.01015392,98380.0,98379.0,0.15857193]
[1733915089945,0.01015392,98380.0,98379.0,0.16857193]
[1733915091074,0.01015392,98380.0,98379.0,0.16357193]
[1733915091326,0.01015392,98380.0,98379.0,0.00980598]
[1733915091548,0.09557051,98380.0,98379.0,0.01480598]
[1733915091791,0.09557051,98380.0,98379.0,0.00980598]
[1733915092021,0.09557051,98380.0,98379.0,0.01]
[1733915092241,0.09557051,98380.0,98368.0,0.1611714]
[1733915092468,0.07786774,98380.0,98379.0,0.018]
[1733915092748,0.08548391,98380.0,98379.0,0.018]
[1733915093033,0.09792092,98380.0,98379.0,0.022]
[1733915093264,0.09792092,98380.0,98379.0,0.018]
[1733915093265,0.10172051,98380.0,98379.0,0.018]
[1733915094668,0.09184158,98380.0,98379.0,0.018]
[1733915094904,0.10807471,98380.0,98379.0,0.018]
[1733915095130,0.10171704,98380.0,98379.0,0.018]
[1733915096142,0.10371704,98380.0,98379.0,0.018]
[1733915096367,0.10171704,98380.0,98379.0,0.018]
[1733915096604,0.10371704,98380.0,98379.0,0.018]
[1733915097354,0.10171704,98380.0,98379.0,0.018]
[1733915097830,0.10371704,98380.0,98379.0,0.018]
[1733915098068,0.02388503,98380.0,98379.0,0.018]
[1733915098332,0.02391386,98380.0,98379.0,0.018]
[1733915098563,0.01629769,98380.0,98379.0,0.0228199]
[1733915098797,0.01629769,98380.0,98379.0,0.018]
[1733915098798,0.01629716,98380.0,98379.0,0.018]
[1733915099030,0.01629716,98380.0,98379.0,0.1659913]
[1733915099031,0.0099403,98380.0,98379.0,0.1659913]
[1733915099752,0.0099403,98380.0,98379.0,0.1669913]
[1733915099996,0.0099403,98380.0,98379.0,0.1679913]
[1733915100299,0.0099403,98380.0,98379.0,0.1669913]
[1733915101008,0.0099403,98380.0,98379.0,0.1689913]
[1733915101464,6.774e-05,98380.0,98379.0,0.1679913]
[1733915101698,6.774e-05,98380.0,98379.0,0.1709913]
[1733915101971,0.00386503,98380.0,98379.0,0.1709913]
[1733915102216,0.0099407,98380.0,98379.0,0.1679913]
[1733915102697,0.023611,98380.0,98379.0,0.1659913]
[1733915102981,0.023611,98380.0,98379.0,0.0238199]
[1733915102982,0.20483895,98380.0,98379.0,0.0238199]
[1733915103213,0.25862937,98380.0,98379.0,0.0268199]
[1733915103459,0.25862937,98380.0,98379.0,0.021]
[1733915103699,0.25862937,98380.0,98379.0,0.023]
[1733915103949,0.25483195,98380.0,98379.0,0.021]
[1733915104505,0.24875752,98380.0,98379.0,0.018]
[1733915104715,0.26700673,98380.0,98379.0,0.021]
[1733915105391,0.26700673,98380.0,98379.0,0.018]
[1733915106388,0.25483144,98380.0,98379.0,0.018]
[1733915106626,0.26700673,98380.0,98379.0,0.018]
[1733915106852,0.25483144,98380.0,98379.0,0.018]
[1733915107092,0.26700673,98380.0,98360.0,0.219143]
[1733915107330,0.00632569,98378.0,98362.0,0.02134215]
[1733915107565,0.02383471,98377.0,98366.0,0.1431714]
[1733915107787,0.01747744,98376.0,98366.0,0.1431714]
[1733915108056,6.774e-05,98380.0,98367.0,0.00483885]
[1733915108057,0.01747744,98375.0,98367.0,0.00483885]
[1733915108276,6.774e-05,98380.0,98367.0,0.00483885]
[1733915108277,0.00986789,98374.0,98367.0,0.00483885]
[1733915108517,0.00379534,98373.0,98367.0,0.00483885]
[1733915108754,0.00986789,98372.0,98367.0,0.00483885]
[1733915108982,0.00379534,98371.0,98367.0,0.00483885]
[1733915109232,0.00379534,98370.0,98366.0,0.1431714]
[1733915109475,0.00379534,98369.0,98368.0,0.00483741]
[1733915109710,0.00379534,98369.0,98368.0,0.16553]
[1733915109959,0.00379534,98369.0,98368.0,0.17036741]
[1733915111684,0.00379534,98369.0,98368.0,0.17336741]
[1733915112216,0.00379534,98369.0,98368.0,0.17136741]
[1733915112426,0.00379534,98369.0,98368.0,0.17036741]
[1733915112672,0.00379534,98369.0,98368.0,0.17136741]
[1733915113157,0.00379534,98369.0,98368.0,0.17336741]
[1733915113400,0.00379534,98369.0,98368.0,0.17636741]
[1733915113624,0.00379534,98369.0,98368.0,0.17336741]
[1733915113859,0.00379534,98369.0,98368.0,0.17736741]
[1733915114331,0.00379534,98369.0,98368.0,0.17436741]
[1733915114810,0.00379534,98369.0,98368.0,0.17836741]
[1733915115260,0.00379534,98369.0,98368.0,0.17036741]
[1733915115498,0.00379534,98369.0,98368.0,0.17736741]
[1733915115995,0.00379534,98369.0,98368.0,0.17036741]
[1733915116215,0.00379534,98369.0,98368.0,0.17536741]
[1733915118067,0.00379534,98369.0,98368.0,0.17236741]
[1733915118306,0.00379534,98369.0,98368.0,0.17436741]
[1733915118825,0.00379534,98369.0,98368.0,0.17336741]
[1733915119050,0.00379534,98369.0,98368.0,0.17436741]
[1733915119267,0.00379534,98369.0,98368.0,0.17736741]
[1733915119508,0.00379534,98369.0,98368.0,0.17036741]
[1733915119983,0.00379534,98369.0,98368.0,0.17836741]
[1733915121095,0.00379534,98369.0,98368.0,0.17436741]
[1733915121326,0.00379534,98369.0,98368.0,0.17036741]
[1733915121549,0.00379534,98369.0,98368.0,0.17436741]
[1733915121775,0.00379534,98369.0,98368.0,0.17736741]
[1733915121997,0.00379534,98369.0,98368.0,0.17036741]
[1733915122212,0.00379534,98369.0,98368.0,0.17836741]
[1733915122922,0.00379534,98369.0,98368.0,0.17436741]
[1733915123156,0.00379534,98369.0,98368.0,0.17336741]
[1733915123400,0.00975482,98369.0,98368.0,0.17636741]
[1733915123883,6.774e-05,98380.0,98368.0,0.17636741]
[1733915124109,0.00761635,98379.0,98369.0,0.00101644]
[1733915124352,0.01730095,98378.0,98369.0,0.00101644]
[1733915124598,0.01730095,98377.0,98372.0,0.02134215]
[1733915124860,0.01730095,98376.0,98372.0,0.02134215]
[1733915125096,0.01357618,98375.0,98373.0,0.00482267]
[1733915125332,0.00372467,98379.0,98373.0,0.00482267]
[1733915125333,0.01730095,98374.0,98373.0,0.00482267]
[1733915126811,0.01730095,98374.0,98373.0,0.00682267]
[1733915126990,0.01730095,98374.0,98373.0,0.00482267]
[1733915127392,0.01730242,98374.0,98373.0,0.00482267]
[1733915127541,0.01730242,98374.0,98373.0,0.01545128]
[1733915127997,0.01730242,98374.0,98373.0,0.01845128]
[1733915128224,0.01730242,98374.0,98373.0,0.02045128]
[1733915128450,0.01730242,98374.0,98373.0,0.01845128]
[1733915128677,0.01730242,98374.0,98373.0,0.01545128]
[1733915128911,0.01134293,98374.0,98373.0,0.01945128]
[1733915129140,0.01730384,98374.0,98373.0,0.01945128]
[1733915129352,0.01730464,98374.0,98373.0,0.01945128]
[1733915130440,0.01730464,98374.0,98373.0,0.00882267]
[1733915141507,0.14030464,98374.0,98373.0,0.00882267]
[1733915141739,0.25783404,98374.0,98360.0,0.0001716]
[1733915141955,0.00621673,98367.0,98360.0,0.0001716]
[1733915142198,0.15587947,98373.0,98360.0,0.0001716]
[1733915142199,0.1101402,98366.0,98361.0,0.00430307]
[1733915142450,0.03586577,98365.0,98361.0,0.00430307]
[1733915142647,0.02990486,98364.0,98360.0,0.0001716]
[1733915142905,0.00621036,98361.0,98360.0,0.0001716]
[1733915143131,0.02975825,98361.0,98360.0,0.0001716]
[1733915143348,0.0295088,98361.0,98360.0,0.0021716]
[1733915143774,0.02949368,98361.0,98360.0,0.0021716]
[1733915144000,0.01604345,98361.0,98360.0,0.0001716]
[1733915144221,0.03585065,98361.0,98360.0,0.0031716]
[1733915144909,0.03585065,98361.0,98360.0,0.0001716]
[1733915146215,0.0236616,98361.0,98360.0,0.0021716]
[1733915146649,0.03585065,98361.0,98360.0,0.0001716]
[1733915146902,0.02988974,98361.0,98360.0,0.0011716]
[1733915147137,0.04219859,98361.0,98360.0,0.0011716]
[1733915147370,0.02365257,98361.0,98360.0,0.0011716]
[1733915147815,0.02361191,98361.0,98360.0,0.0011716]
[1733915149146,0.03580096,98361.0,98360.0,0.0011716]
[1733915149376,0.02361191,98361.0,98360.0,0.0011716]
[1733915150319,0.01599963,98361.0,98360.0,0.0011716]
[1733915150822,0.00964116,98361.0,98360.0,0.0011716]
[1733915151054,0.00964066,98361.0,98360.0,0.0011716]
[1733915153082,0.00964066,98361.0,98360.0,0.00539504]
[1733915153850,0.01334846,98361.0,98360.0,0.00539504]
[1733915154068,0.00964032,98361.0,98360.0,0.00539504]
[1733915156279,0.00964032,98361.0,98360.0,0.02673719]
[1733915156496,0.00964032,98361.0,98360.0,0.02775376]
[1733915157222,0.00964032,98361.0,98360.0,0.02673719]
[1733915159571,0.00964032,98361.0,98360.0,0.00539504]
[1733915159782,0.01724809,98361.0,98360.0,0.00539504]
[1733915160017,0.01724809,98361.0,98360.0,0.02673719]
[1733915160472,0.01724809,98361.0,98360.0,0.02504056]
[1733915161144,0.01724809,98361.0,98360.0,0.00369841]
[1733915161644,0.01724809,98361.0,98346.0,0.0762]
[1733915161876,0.00964032,98361.0,98360.0,0.0041951]
[1733915162111,0.00964032,98361.0,98348.0,0.02134215]
[1733915162112,0.01725,98361.0,98348.0,0.02134215]
[1733915162360,8.58e-05,98370.0,98360.0,0.0041951]
[1733915162608,0.01725255,98360.0,98353.0,0.00419833]
[1733915162853,0.00635791,98368.0,98352.0,0.01137238]
[1733915163066,0.00760924,98367.0,98352.0,0.01137238]
[1733915163297,0.00593481,98359.0,98355.0,0.02134215]
[1733915163580,0.00964407,98358.0,98355.0,0.02134215]
[1733915163832,0.00593481,98357.0,98352.0,0.01037238]
[1733915164073,0.00370926,98358.0,98352.0,0.01037238]
[1733915164287,0.00593542,98357.0,98356.0,0.1431714]
[1733915164947,0.00964468,98357.0,98356.0,0.1431714]
[1733915165679,0.00964584,98357.0,98356.0,0.1431714]
[1733915165888,0.0096471,98357.0,98356.0,0.1431714]
[1733915166138,0.0096471,98357.0,98356.0,0.1441714]
[1733915166358,0.0096471,98357.0,98356.0,0.1431714]
[1733915166578,0.0096471,98357.0,98356.0,0.1451714]
[1733915166807,0.0096471,98357.0,98356.0,0.1461714]
[1733915167020,0.0096471,98357.0,98356.0,0.1431714]
[1733915167488,0.0096471,98357.0,98356.0,0.1451714]
[1733915168138,0.0096471,98357.0,98356.0,0.002]
[1733915168356,0.0096471,98357.0,98356.0,0.00643121]
[1733915168860,0.0096471,98357.0,98356.0,0.14760261]
[1733915169084,0.01726273,98357.0,98356.0,0.14960261]
[1733915169312,0.02362101,98357.0,98356.0,0.14960261]
[1733915169534,0.02362101,98357.0,98356.0,0.00443121]
[1733915169757,0.02362101,98357.0,98356.0,0.002]
[1733915170238,0.02362101,98357.0,98356.0,0.00643332]
[1733915170461,0.02362101,98357.0,98356.0,0.002]
[1733915170679,0.02362101,98357.0,98356.0,0.00643332]
[1733915170928,0.02362101,98357.0,98356.0,0.002]
[1733915171390,0.03580874,98357.0,98356.0,0.1451714]
[1733915171633,0.03580874,98357.0,98356.0,0.14960469]
[1733915171869,0.01726273,98357.0,98356.0,0.14760469]
[1733915172345,0.01726273,98357.0,98356.0,0.17096348]
[1733915172574,0.00594456,98357.0,98356.0,0.30066348]
[1733915172836,0.00635757,98367.0,98356.0,0.29864684]
[1733915173091,0.01007296,98366.0,98357.0,0.00101657]
[1733915173311,0.01992342,98365.0,98357.0,0.00101657]
[1733915173529,0.01356585,98364.0,98358.0,0.0044325]
[1733915173750,0.01356585,98363.0,98359.0,0.00101657]
[1733915174013,0.01728124,98362.0,98359.0,0.00101657]
[1733915174230,0.00594462,98361.0,98360.0,0.00443148]
[1733915174674,0.00966001,98361.0,98360.0,0.02134215]
[1733915174901,0.00966001,98361.0,98360.0,0.02577363]
[1733915175379,0.00965949,98361.0,98360.0,0.02577363]
[1733915175611,0.01560329,98361.0,98360.0,0.02577363]
[1733915175855,0.00965867,98361.0,98360.0,0.03077363]
[1733915181882,0.00965867,98361.0,98360.0,0.17394503]
[1733915182117,0.00371487,98361.0,98360.0,0.25186158]
[1733915182367,0.00371487,98361.0,98360.0,0.25084503]
[1733915182603,0.00371487,98361.0,98360.0,0.35617027]
[1733915182913,8.58e-05,98370.0,98369.0,0.1431714]
[1733915183101,0.00974442,98370.0,98369.0,0.1431714]
[1733915183334,0.00974442,98370.0,98369.0,0.14723063]
[1733915183569,0.00380065,98370.0,98369.0,0.14723063]
[1733915183812,0.00380065,98370.0,98369.0,0.14824704]
[1733915184728,0.00380065,98370.0,98369.0,0.14924704]
[1733915185199,8.58e-05,98370.0,98369.0,0.14924704]
[1733915185874,0.0037988,98370.0,98369.0,0.14924704]
[1733915186092,0.0037988,98370.0,98369.0,0.15988866]
[1733915187482,0.0037988,98370.0,98369.0,0.36435605]
[1733915187717,0.0037988,98370.0,98369.0,0.36333964]
[1733915188632,0.0037964,98370.0,98369.0,0.36333964]
[1733915189159,0.0037964,98370.0,98369.0,0.22016824]
[1733915189355,8.58e-05,98370.0,98369.0,0.36333964]
[1733915190268,8.58e-05,98370.0,98369.0,0.2580144]
[1733915190521,8.58e-05,98370.0,98369.0,0.1802144]
[1733915190759,8.58e-05,98370.0,98369.0,0.1812308]
[1733915190981,8.58e-05,98370.0,98369.0,0.0380594]
[1733915191249,8.58e-05,98370.0,98369.0,0.1812308]
[1733915191425,8.58e-05,98370.0,98369.0,0.0380594]
[1733915191639,8.58e-05,98370.0,98369.0,0.1812308]
[1733915199457,0.00379623,98370.0,98369.0,0.1812308]
[1733915202061,0.00379794,98370.0,98369.0,0.1812308]
[1733915204417,0.00255145,98370.0,98369.0,0.1812308]
[1733915207828,0.00255145,98370.0,98369.0,0.0380594]
[1733915208069,0.00255145,98370.0,98369.0,0.1812308]
[1733915208807,0.00255145,98370.0,98369.0,0.0380594]
[1733915209033,0.00255145,98370.0,98369.0,0.1812308]
[1733915209548,0.00255145,98370.0,98369.0,0.0380594]
[1733915209796,0.00255145,98370.0,98369.0,0.1812308]
[1733915211460,0.00255145,98370.0,98369.0,0.14823063]
[1733915211704,0.00255145,98370.0,98369.0,0.00505923]
[1733915211705,0.14340451,98370.0,98369.0,0.00505923]
[1733915211934,0.15560376,98370.0,98369.0,0.00505923]
[1733915212167,0.15560376,98370.0,98369.0,0.001]
[1733915212389,0.16179024,98370.0,98360.0,0.0001718]
[1733915212639,0.03195342,98369.0,98360.0,0.0001718]
[1733915212854,0.00618701,98363.0,98360.0,0.0001718]
[1733915213077,0.01992508,98362.0,98360.0,0.0001718]
[1733915213348,0.02618171,98361.0,98360.0,0.0001718]
[1733915213560,0.02618171,98361.0,98360.0,0.0011718]
[1733915214007,0.03212433,98361.0,98360.0,0.0001718]
[1733915214248,0.03212433,98361.0,98360.0,0.0021718]
[1733915214474,0.01992508,98361.0,98360.0,0.0021718]
[1733915214932,0.01991184,98361.0,98360.0,0.0021718]
[1733915215631,0.01991184,98361.0,98360.0,0.0001718]
[1733915215880,0.01991184,98361.0,98360.0,0.0011718]
[1733915216332,0.01991184,98361.0,98360.0,0.0001718]
[1733915216572,0.01725711,98361.0,98360.0,0.0011718]
[1733915217001,0.01725711,98361.0,98360.0,0.0001718]
[1733915217493,0.01725711,98361.0,98360.0,0.0011718]
[1733915218205,0.01724122,98361.0,98360.0,0.00523768]
[1733915218465,0.01724122,98361.0,98360.0,0.0011718]
[1733915218687,0.01724122,98361.0,98360.0,0.00423768]
[1733915218924,0.01724122,98361.0,98360.0,0.0001718]
[1733915219164,0.01724122,98361.0,98360.0,0.00523768]
[1733915219406,0.01724122,98361.0,98360.0,0.0011718]
[1733915219615,0.01724122,98361.0,98360.0,0.00523768]
[1733915219842,0.01724122,98361.0,98360.0,0.0011718]
[1733915220082,0.01724122,98361.0,98360.0,0.00523768]
[1733915220313,0.00963257,98361.0,98360.0,0.00423768]
[1733915220541,0.00963257,98361.0,98360.0,0.00523768]
[1733915221028,0.005929,98361.0,98360.0,0.00523768]
[1733915221256,0.00370212,98361.0,98360.0,0.00523768]
[1733915221509,0.00962552,98361.0,98360.0,0.00523768]
[1733915222413,0.00962552,98361.0,98360.0,0.00423768]
[1733915225571,0.00962552,98361.0,98360.0,0.00523768]
[1733915226007,0.00962552,98361.0,98360.0,0.00423768]
[1733915226499,0.00962552,98361.0,98360.0,0.00523768]
[1733915226943,0.00760483,98366.0,98360.0,0.00523768]
[1733915227173,0.00370121,98361.0,98360.0,0.00523768]
[1733915227390,0.00370121,98361.0,98360.0,0.0011718]
[1733915227641,0.00962315,98361.0,98360.0,0.00524059]
[1733915227861,0.00962319,98361.0,98360.0,0.00524059]
[1733915228960,0.00962319,98361.0,98360.0,0.00424059]
[1733915230641,0.0812859,98370.0,98360.0,0.00424059]
[1733915230881,0.00962447,98361.0,98360.0,0.00524059]
[1733915232052,0.00962447,98361.0,98360.0,0.00424059]
[1733915232479,0.0172316,98361.0,98360.0,0.00424059]
[1733915233019,0.0172316,98361.0,98360.0,0.00524059]
[1733915233505,0.01723391,98361.0,98360.0,0.00524059]
[1733915234896,0.01723391,98361.0,98360.0,0.00424059]
[1733915235361,0.01723391,98361.0,98360.0,0.00524059]
[1733915235828,0.01723391,98361.0,98360.0,0.00424059]
[1733915236047,0.01723391,98361.0,98360.0,0.00524059]
[1733915236519,0.01723391,98361.0,98360.0,0.00424059]
[1733915236754,0.02316585,98361.0,98360.0,0.00624059]
[1733915236981,0.01724168,98361.0,98360.0,0.00624059]
[1733915237872,0.01724168,98361.0,98360.0,0.00424059]
[1733915238371,0.01724168,98361.0,98360.0,0.00624059]
[1733915238600,0.01598839,98361.0,98360.0,0.25155414]
[1733915238846,0.01598839,98361.0,98360.0,0.35487938]
[1733915238847,0.00963037,98361.0,98360.0,0.35487938]
[1733915239103,0.00370399,98361.0,98360.0,0.35687938]
[1733915239339,8.59e-05,98370.0,98360.0,0.35687938]
[1733915239574,0.00370638,98369.0,98361.0,0.10594668]
[1733915239795,0.00370638,98369.0,98361.0,0.10634169]
[1733915240030,0.00370638,98369.0,98368.0,0.1431714]
[1733915240263,8.59e-05,98370.0,98368.0,0.1431714]
[1733915240517,0.00370644,98369.0,98368.0,0.1431714]
[1733915240745,0.00370644,98369.0,98368.0,0.14736654]
[1733915240984,8.59e-05,98370.0,98369.0,0.1431714]
[1733915241448,8.59e-05,98370.0,98369.0,0.14736608]
[1733915242118,0.0037924,98370.0,98369.0,0.14736608]
[1733915242800,0.0037924,98370.0,98369.0,0.15336608]
[1733915243031,0.0037924,98370.0,98369.0,0.15036608]
[1733915243254,0.0037924,98370.0,98369.0,0.15536608]
[1733915243703,8.59e-05,98370.0,98369.0,0.15036608]
[1733915243931,8.59e-05,98370.0,98369.0,0.15436608]
[1733915244184,8.59e-05,98370.0,98369.0,0.02146187]
[1733915244419,0.0037907,98370.0,98369.0,0.16163327]
[1733915244649,0.0037907,98370.0,98369.0,0.02246187]
[1733915244886,0.0037907,98370.0,98369.0,0.16563327]
[1733915245107,0.0037907,98370.0,98369.0,0.01846187]
[1733915245342,0.0037907,98370.0,98369.0,0.15763327]
[1733915245598,0.0037907,98370.0,98369.0,0.16463327]
[1733915245829,0.01932899,98370.0,98369.0,0.16063327]
[1733915247015,0.01932899,98370.0,98369.0,0.15763327]
[1733915247240,0.01932899,98370.0,98369.0,0.15963327]
[1733915247467,0.01932899,98370.0,98369.0,0.16263327]
[1733915247970,0.01932899,98370.0,98369.0,0.15963327]
[1733915248205,0.01932899,98370.0,98369.0,0.00819468]
[1733915248432,0.01932899,98370.0,98369.0,0.00619468]
[1733915248689,0.0315091,98370.0,98369.0,0.00619468]
[1733915248890,0.0315091,98370.0,98369.0,0.002]
[1733915249398,0.0315091,98370.0,98369.0,0.003]
[1733915249640,0.0315091,98370.0,98369.0,0.002]
[1733915249865,0.03150916,98370.0,98369.0,0.002]
[1733915250092,0.0374363,98370.0,98369.0,0.002]
[1733915250327,0.0374363,98370.0,98360.0,0.0001718]
[1733915250328,0.03150928,98370.0,98360.0,0.0001718]
[1733915250555,0.02349624,98369.0,98360.0,0.0001718]
[1733915250777,0.01979178,98368.0,98361.0,0.00399849]
[1733915251022,0.00761222,98367.0,98361.0,0.00399849]
[1733915251250,0.00761222,98367.0,98360.0,0.0001718]
[1733915251468,0.00761222,98366.0,98360.0,0.0001718]
[1733915251667,0.01724382,98365.0,98361.0,0.00399873]
[1733915251881,0.01131668,98364.0,98361.0,0.00399873]
[1733915252130,0.01131668,98363.0,98360.0,0.0001718]
[1733915252357,0.00761222,98362.0,98360.0,0.0001718]
[1733915252577,0.00761222,98361.0,98360.0,0.0001718]
[1733915252793,0.01724382,98361.0,98360.0,0.0001718]
[1733915253019,0.00592714,98361.0,98360.0,0.0001718]
[1733915253305,0.01724443,98361.0,98360.0,0.0001718]
[1733915254389,0.01724443,98361.0,98360.0,0.0021718]
[1733915254832,0.01724443,98361.0,98360.0,0.0001718]
[1733915255047,0.01724443,98361.0,98360.0,0.0021718]
[1733915256230,0.00761249,98361.0,98360.0,0.0031718]
[1733915256441,0.01689775,98361.0,98360.0,0.0031718]
[1733915256881,0.01689775,98361.0,98360.0,0.0001718]
[1733915257343,0.01689775,98361.0,98360.0,0.0011718]
[1733915257787,0.01689775,98361.0,98360.0,0.00517057]
[1733915258004,0.01689775,98361.0,98360.0,0.0001718]
[1733915258234,0.01689775,98361.0,98360.0,0.00517057]
[1733915258460,0.01689775,98361.0,98360.0,0.0011718]
[1733915259600,0.01689775,98361.0,98360.0,0.00517057]
[1733915259853,0.00571401,98361.0,98360.0,0.0001718]
[1733915260064,0.01332657,98361.0,98360.0,0.0001718]
[1733915260283,0.01332657,98361.0,98360.0,0.0011718]
[1733915260503,0.01689782,98361.0,98360.0,0.00517057]
[1733915260723,0.01689782,98361.0,98360.0,0.00417057]
[1733915260943,0.01689782,98361.0,98360.0,0.00517057]